bitfinex/quotes_SOLUSD_20240725
["timestamp","ask_amount","ask_price","bid_price","bid_amount"]
[1721876195224,1.46477364,170.73,170.6,23.20620233]
[1721876195452,1.46476134,170.75,170.61,0.58119157]
[1721876195831,1.46476021,170.76,170.61,20.58119157]
[1721876196055,1.46457823,170.78,170.61,20.58119157]
[1721876196866,1.46457823,170.78,170.62,45.0]
[1721876197063,16.79202926,170.79,170.63,20.58063456]
[1721876197349,15.3275,170.79,170.64,45.0]
[1721876197558,15.3275,170.79,170.65,20.58016511]
[1721876197728,15.3275,170.79,170.66,45.0]
[1721876197929,1.46428951,170.81,170.68,6.0671]
[1721876198146,6.11523115,170.83,170.69,45.0]
[1721876198465,6.11523115,170.83,170.69,45.57938524]
[1721876198661,1.46401016,170.82,170.69,45.0]
[1721876198954,5.855,170.8,170.69,45.0]
[1721876199132,38.22429812,170.82,170.69,45.0]
[1721876199333,44.07839812,170.82,170.69,45.0]
[1721876199559,5.8545,170.81,170.69,45.0]
[1721876199759,1.4641973,170.8,170.69,45.0]
[1721876200441,1.46419746,170.81,170.69,45.0]
[1721876201855,21.46419746,170.81,170.63,6.1428]
[1721876202068,5.8554,170.78,170.63,6.1428]
[1721876202235,36.76,170.82,170.68,20.0]
[1721876202236,1.46451175,170.82,170.68,20.0]
[1721876202432,7.31861175,170.82,170.65,20.57955194]
[1721876202629,6.11523115,170.83,170.68,20.0]
[1721876202856,6.11523115,170.83,170.69,0.5792564]
[1721876202857,1.46422964,170.82,170.69,0.5792564]
[1721876203160,1.46422964,170.82,170.7,20.0]
[1721876203372,1.46422964,170.82,170.71,45.0]
[1721876204033,1.46397978,170.81,170.71,45.0]
[1721876204233,1.46397973,170.84,170.71,45.0]
[1721876205852,1.46397973,170.84,170.72,0.57931908]
[1721876206164,1.46398114,170.85,170.73,20.0]
[1721876206332,1.46398114,170.85,170.74,45.0]
[1721876206537,18.12798048,170.87,170.74,45.57859749]
[1721876206870,6.0499,170.88,170.75,20.0]
[1721876206871,1.46368033,170.88,170.75,20.0]
[1721876207065,66.44177081,170.92,170.76,45.5779786]
[1721876207273,60.59107081,170.92,170.76,45.0]
[1721876207565,6.1108482,170.92,170.81,6.0594]
[1721876207764,1.46309733,170.96,170.82,45.57719794]
[1721876207968,1.46295152,170.95,170.82,45.0]
[1721876209843,5.8504,170.93,170.81,6.0594]
[1721876210149,1.46327292,170.92,170.81,6.0594]
[1721876210554,1.46323512,170.96,170.81,6.0594]
[1721876210772,1.4632347,170.95,170.81,6.0594]
[1721876211280,1.4632347,170.95,170.82,45.0]
[1721876213277,1.46301279,170.96,170.82,45.0]
[1721876213643,1.46295131,170.95,170.82,45.0]
[1721876216868,1.46295131,170.95,170.81,6.0594]
[1721876218376,1.46295131,170.95,170.82,45.0]
[1721876218848,7.31255131,170.95,170.82,45.0]
[1721876219047,1.46295131,170.95,170.82,45.0]
[1721876220284,1.46305072,170.96,170.83,0.57708606]
[1721876221261,16.6513,170.97,170.83,0.57708606]
[1721876221447,1.46290317,170.96,170.83,0.57708606]
[1721876221764,16.6513,170.97,170.83,40.57708606]
[1721876221972,16.6513,170.97,170.82,60.2941]
[1721876221973,1.46292883,170.95,170.84,45.0]
[1721876222280,1.46292883,170.95,170.82,60.2941]
[1721876223073,7.31262883,170.95,170.81,40.77947693]
[1721876223370,34.06292883,170.95,170.81,6.0594]
[1721876224072,39.91252883,170.95,170.81,38.6594]
[1721876224252,5.8517,170.89,170.77,21.6538]
[1721876224447,1.46366657,170.88,170.77,6.3597]
[1721876224649,1.46366657,170.88,170.78,32.6]
[1721876224843,1.46346607,170.91,170.78,33.1780829]
[1721876225049,15.0005,170.92,170.8,20.0]
[1721876225350,1.46309526,170.92,170.81,32.6]
[1721876225875,1.46309526,170.92,170.82,45.0]
[1721876226240,1.46331295,170.91,170.82,45.0]
[1721876227182,32.5905,170.98,170.82,45.0]
[1721876227183,1.46332588,170.94,170.82,45.0]
[1721876227964,1.4630208,170.97,170.82,60.1279]
[1721876228682,1.4630208,170.97,170.83,0.57691152]
[1721876228881,16.46331298,170.98,170.84,39.1206]
[1721876229047,1.46281298,170.98,170.85,45.0]
[1721876229876,32.6,170.97,170.85,45.0]
[1721876230177,34.0630614,170.97,170.85,45.0]
[1721876230583,39.9121614,170.97,170.85,45.0]
[1721876230789,34.0630614,170.97,170.85,45.0]
[1721876231656,20.0,170.96,170.85,45.0]
[1721876231993,1.46324847,170.95,170.85,45.0]
[1721876232878,1.46324689,170.96,170.85,45.0]
[1721876233080,1.46324415,170.95,170.85,45.0]
[1721876234261,1.4630807,170.94,170.85,45.0]
[1721876235175,1.46313114,170.96,170.85,45.0]
[1721876235378,1.46317583,170.95,170.85,45.0]
[1721876237582,32.6,170.98,170.86,0.57672436]
[1721876237876,1.46295972,170.97,170.85,45.0]
[1721876238284,32.6,170.95,170.84,6.5206]
[1721876238463,1.46328664,170.94,170.84,6.5206]
[1721876239561,1.46328664,170.94,170.85,45.0]
[1721876240382,1.46307623,170.97,170.85,45.0]
[1721876242188,1.46307623,170.97,170.84,6.5206]
[1721876242487,32.6,170.96,170.84,6.5206]
[1721876242686,1.46318953,170.95,170.84,6.5206]
[1721876244189,1.46318953,170.95,170.85,45.0]
[1721876244578,20.0,170.98,170.85,45.0]
[1721876244579,1.46299715,170.97,170.85,45.0]
[1721876246516,1.46285083,170.99,170.85,45.0]
[1721876246792,1.4627498,170.98,170.85,45.0]
[1721876247015,1.46272215,170.99,170.85,65.0]
[1721876247498,1.46272215,170.99,170.86,0.57621643]
[1721876247887,0.8074846,171.01,170.88,20.0]
[1721876248081,0.8074846,171.01,170.89,45.57555916]
[1721876248276,0.8074846,171.01,170.89,45.0]
[1721876249175,0.8074846,171.01,170.9,0.5755804]
[1721876249703,0.8074846,171.01,170.91,35.8246]
[1721876249911,0.8074846,171.01,170.92,45.0]
[1721876250282,1.46242387,171.0,170.92,45.0]
[1721876251094,0.8074846,171.01,170.92,45.0]
[1721876251304,0.8074846,171.01,170.91,45.57487078]
[1721876251703,0.8074846,171.01,170.92,6.5811]
[1721876252007,0.8074846,171.01,170.93,45.0]
[1721876254085,0.8074846,171.01,170.93,65.57483767]
[1721876254600,0.8074846,171.01,170.93,65.57442575]
[1721876254797,0.8074846,171.01,170.93,45.0]
[1721876255297,0.8074846,171.01,170.93,45.57480061]
[1721876255498,0.8074846,171.01,170.93,65.57480061]
[1721876257286,16.6115,171.09,170.96,20.0]
[1721876257487,16.6115,171.09,170.97,45.57378933]
[1721876258213,16.6115,171.09,170.98,20.0]
[1721876258390,16.6115,171.09,170.99,43.97944349]
[1721876259004,16.6115,171.09,170.95,20.0]
[1721876259005,18.07333197,171.09,170.95,20.0]
[1721876259304,18.07333197,171.09,170.96,0.57382957]
[1721876259305,16.6115,171.09,170.96,0.57382957]
[1721876259811,1.46174509,171.08,170.96,0.57382957]
[1721876260106,1.46174509,171.08,170.95,20.57395537]
[1721876260515,1.46174509,171.08,170.96,0.57395555]
[1721876260812,18.07324646,171.09,170.96,45.57395585]
[1721876261203,18.07324646,171.09,170.96,45.0]
[1721876262098,32.6,171.08,170.96,45.0]
[1721876262303,18.07345956,171.09,170.96,65.5744282]
[1721876262794,18.07345956,171.09,170.96,45.0]
[1721876263002,18.07345956,171.09,170.95,45.0]
[1721876263507,18.07345956,171.09,170.95,45.57431274]
[1721876263686,16.6115,171.09,170.96,20.574062]
[1721876263888,16.6115,171.09,170.97,45.0]
[1721876264708,18.07314225,171.09,170.97,45.0]
[1721876265497,16.6115,171.09,170.98,0.57370638]
[1721876266315,16.6115,171.09,170.97,45.0]
[1721876267421,18.07324156,171.09,170.97,45.0]
[1721876267619,18.07324156,171.09,170.98,20.0]
[1721876267823,18.07324156,171.09,170.99,45.0]
[1721876268299,16.6115,171.09,170.99,45.0]
[1721876269001,1.46173773,171.08,170.99,45.0]
[1721876269405,16.6115,171.09,170.99,45.0]
[1721876269610,1.46158886,171.08,170.99,45.0]
[1721876269925,16.6115,171.09,170.96,53.17368304]
[1721876270131,1.46163279,171.08,170.96,53.17368304]
[1721876271198,1.46170048,171.08,170.96,32.6]
[1721876271418,1.46170048,171.08,170.96,0.5743176]
[1721876272204,1.46193166,171.07,170.94,0.57432742]
[1721876273022,1.46193166,171.07,170.92,9.2844455]
[1721876273023,7.30743166,171.07,170.92,9.2844455]
[1721876273526,7.30743166,171.07,170.92,8.7099651]
[1721876273730,1.46193166,171.07,170.92,8.7099651]
[1721876274726,1.46193166,171.07,170.83,17.59]
[1721876274727,15.4337,170.99,170.86,1.01815632]
[1721876274908,1.46268351,170.98,170.86,1.01815632]
[1721876275312,15.4337,170.99,170.86,3.72062812]
[1721876275513,15.4337,170.99,170.91,32.6]
[1721876276403,15.4337,170.99,170.92,85.57510651]
[1721876276627,15.4337,170.99,170.91,32.6]
[1721876277008,15.4337,170.99,170.92,0.57513265]
[1721876277724,15.4337,170.99,170.91,52.6]
[1721876277906,15.4337,170.99,170.92,0.57484749]
[1721876278234,15.4337,170.99,170.93,20.57483215]
[1721876278404,15.4337,170.99,170.94,45.0]
[1721876278608,15.4337,170.99,170.93,0.57483215]
[1721876278919,15.4337,170.99,170.93,20.57483215]
[1721876279118,15.4337,170.99,170.94,45.0]
[1721876280229,15.4337,170.99,170.98,16.28]
[1721876280531,15.3063,171.03,170.98,61.28]
[1721876280825,15.3063,171.03,171.0,16.28]
[1721876281207,15.3063,171.03,171.01,45.0]
[1721876281707,15.3063,171.03,170.99,16.28]
[1721876281708,31.8059,171.08,171.02,16.28]
[1721876281907,31.8059,171.08,170.97,40.0]
[1721876281908,31.8059,171.08,171.03,61.28]
[1721876282427,15.5259,171.08,171.03,61.28]
[1721876282805,31.8059,171.08,171.03,61.28]
[1721876284308,15.5259,171.08,171.03,45.0]
[1721876285126,16.98760549,171.08,171.03,45.0]
[1721876285608,15.5259,171.08,171.03,45.0]
[1721876286527,15.5259,171.08,170.97,34.64925117]
[1721876286832,1.46188554,171.07,170.97,2.10925117]
[1721876287010,1.46188554,171.07,170.94,32.54]
[1721876287925,1.46209497,171.07,170.94,32.54]
[1721876288115,15.5259,171.08,170.95,0.57448391]
[1721876288617,15.5259,171.08,170.95,20.57448391]
[1721876289331,15.5259,171.08,170.96,45.0]
[1721876289555,16.98769393,171.08,170.97,32.54]
[1721876289838,16.98769393,171.08,170.98,45.0]
[1721876290032,15.5259,171.08,170.99,20.57373399]
[1721876290341,15.5259,171.08,171.0,45.0]
[1721876291737,15.5259,171.08,171.01,40.5732531]
[1721876291925,15.5259,171.08,171.02,45.0]
[1721876292936,15.5259,171.08,171.01,45.0]
[1721876294017,17.59,171.17,171.04,52.54]
[1721876294018,16.6417,171.16,171.04,52.54]
[1721876294216,16.6417,171.16,171.05,65.57210294]
[1721876294419,16.6417,171.16,171.05,45.0]
[1721876294640,1.46120424,171.15,171.05,45.0]
[1721876295143,16.6417,171.16,171.05,45.0]
[1721876295324,18.1026764,171.16,171.05,45.0]
[1721876295527,16.6417,171.16,171.05,45.0]
[1721876296847,1.46099081,171.15,171.05,45.0]
[1721876297056,1.46124104,171.14,171.01,0.57214228]
[1721876297216,16.6417,171.16,171.06,32.54]
[1721876297417,16.6417,171.16,171.07,0.57185136]
[1721876297652,16.6417,171.16,171.06,33.11190393]
[1721876298446,16.6417,171.16,171.06,32.54]
[1721876298635,1.46115522,171.15,171.03,32.54]
[1721876299219,16.6417,171.16,171.04,0.57283813]
[1721876299442,16.6417,171.16,171.03,32.54]
[1721876299747,16.6417,171.16,171.03,52.54]
[1721876299948,16.6417,171.16,171.05,20.0]
[1721876300114,16.6417,171.16,171.06,78.11203353]
[1721876300320,16.6417,171.16,171.06,77.54]
[1721876300632,18.10266181,171.16,171.06,77.54]
[1721876302025,16.6417,171.16,171.06,77.54]
[1721876302443,16.6417,171.16,171.08,20.0]
[1721876302651,16.6417,171.16,171.09,45.0]
[1721876302856,16.6417,171.16,171.06,77.54]
[1721876303555,16.6417,171.16,171.07,0.57201242]
[1721876303730,16.6417,171.16,171.08,0.57201204]
[1721876304130,16.6417,171.16,171.06,98.11189939]
[1721876304359,0.8074846,171.18,171.11,20.0]
[1721876304649,0.8074846,171.18,171.12,45.0]
[1721876305266,0.8074846,171.18,171.14,32.54]
[1721876305552,0.8074846,171.18,171.15,45.0]
[1721876305727,0.8074846,171.18,171.12,45.0]
[1721876305929,0.8074846,171.18,171.11,45.57066549]
[1721876306144,0.8074846,171.18,171.16,16.24]
[1721876306345,0.8074846,171.18,171.17,61.24]
[1721876308242,0.8074846,171.18,171.17,45.0]
[1721876311535,16.6119,171.3,171.18,20.0]
[1721876311735,16.6119,171.3,171.19,0.56907695]
[1721876311967,16.6119,171.3,171.19,20.56907695]
[1721876312562,16.6119,171.3,171.21,20.0]
[1721876313036,16.6119,171.3,171.19,0.56907695]
[1721876313242,16.6119,171.3,171.18,20.5692868]
[1721876314145,16.6119,171.3,171.19,20.0]
[1721876314336,16.6119,171.3,171.2,45.0]
[1721876315262,1.45978124,171.29,171.14,20.0]
[1721876315762,1.45978124,171.29,171.14,20.57022131]
[1721876315934,1.45978124,171.29,171.15,0.57022094]
[1721876316130,22.4496,171.3,171.16,20.0]
[1721876316131,18.07206274,171.3,171.16,20.0]
[1721876316343,1.45998542,171.29,171.16,20.0]
[1721876316555,16.6119,171.3,171.17,0.56972935]
[1721876316941,16.6119,171.3,171.18,0.56966889]
[1721876317143,16.6119,171.3,171.18,20.56966889]
[1721876317346,1.4598505,171.29,171.16,32.48]
[1721876317563,1.4598505,171.29,171.17,0.56940555]
[1721876317857,7.2978505,171.29,171.16,32.48]
[1721876318166,5.8384,171.28,171.14,20.0]
[1721876318364,1.46019003,171.27,171.14,20.0]
[1721876318575,1.46018971,171.26,171.14,20.0]
[1721876318943,1.46018936,171.29,171.15,0.57021879]
[1721876319746,1.46018936,171.29,171.09,32.48]
[1721876319747,32.48,171.22,171.02,21.01662353]
[1721876319977,32.48,171.25,171.07,30.0]
[1721876319978,16.5824,171.15,171.07,30.0]
[1721876320155,5.8439,171.12,171.02,1.01662353]
[1721876320361,1.46156088,171.11,170.97,0.57317828]
[1721876320664,7.30637209,171.1,171.0,1.01789527]
[1721876320970,1.46172781,171.12,170.97,20.0]
[1721876321173,1.46172781,171.12,170.98,1.59145812]
[1721876321475,1.46172781,171.12,170.98,1.01781581]
[1721876322083,6.4012,171.14,171.01,20.0]
[1721876322370,6.4012,171.14,171.03,20.0]
[1721876322555,6.4012,171.14,171.04,0.57250942]
[1721876322757,6.4012,171.14,171.05,0.57242236]
[1721876323167,6.4012,171.14,171.03,65.57233296]
[1721876323368,6.4012,171.14,171.04,45.0]
[1721876323573,16.5824,171.15,171.06,20.0]
[1721876323871,16.5824,171.15,171.07,45.57167074]
[1721876324055,16.5824,171.15,171.07,45.0]
[1721876324256,16.5824,171.15,171.06,45.0]
[1721876324873,16.5824,171.15,171.07,0.57232711]
[1721876325369,16.5824,171.15,171.06,45.0]
[1721876326065,16.5824,171.15,171.05,32.48]
[1721876326269,1.46119344,171.14,171.02,32.48]
[1721876326472,16.5824,171.15,171.03,20.0]
[1721876326681,16.5824,171.15,171.03,20.57275672]
[1721876327550,1.4610927,171.14,171.03,20.0]
[1721876327767,1.4610927,171.14,171.02,32.48]
[1721876327975,1.4610927,171.14,170.99,33.05284259]
[1721876328145,7.3042927,171.14,171.0,20.0]
[1721876328345,1.4610927,171.14,171.0,20.0]
[1721876328877,7.3042927,171.14,171.0,20.0]
[1721876329083,39.7842927,171.14,171.0,20.0]
[1721876329283,33.9410927,171.14,171.0,20.0]
[1721876330757,33.9410927,171.14,171.01,45.0]
[1721876333981,6.3467,171.13,171.01,45.0]
[1721876334182,15.9494,171.11,171.01,45.0]
[1721876334359,1.46158884,171.1,171.01,45.0]
[1721876334559,1.46158884,171.1,170.98,1.01781581]
[1721876335273,17.41105845,171.11,170.98,1.01781581]
[1721876335472,1.46163449,171.1,170.98,1.01781581]
[1721876335952,15.9494,171.11,170.98,1.01781581]
[1721876336165,15.9494,171.11,170.99,20.57352229]
[1721876336562,15.9494,171.11,171.0,45.0]
[1721876336768,15.9494,171.11,171.02,20.0]
[1721876336974,15.9494,171.11,171.02,53.05253738]
[1721876337147,15.9494,171.11,171.03,45.0]
[1721876338380,15.9494,171.11,171.04,0.57291962]
[1721876339161,15.9494,171.11,171.03,45.0]
[1721876339362,15.9494,171.11,171.04,0.57277583]
[1721876340278,15.9494,171.11,171.03,45.0]
[1721876343163,15.9494,171.11,171.03,65.5729455]
[1721876343363,15.9494,171.11,171.03,45.5729455]
[1721876343780,15.9494,171.11,171.04,40.0]
[1721876343993,6.3467,171.13,171.05,78.05223903]
[1721876344992,6.3467,171.13,171.06,60.0]
[1721876345199,6.3467,171.13,171.07,45.57173415]
[1721876345398,6.3467,171.13,171.07,45.0]
[1721876345983,6.3467,171.13,171.07,45.57207024]
[1721876346384,6.3467,171.13,171.07,45.0]
[1721876347070,16.1914,171.15,171.08,0.57174394]
[1721876347397,16.1914,171.15,171.09,20.0]
[1721876347576,13.77510701,171.15,171.1,45.57118326]
[1721876347764,8.43459484,171.2,171.1,45.57118326]
[1721876347964,8.43459484,171.2,171.11,0.5708764]
[1721876348278,14.77079484,171.21,171.11,20.57121966]
[1721876348595,6.3362,171.21,171.12,45.0]
[1721876349796,6.3362,171.21,171.1,0.57080925]
[1721876350000,14.77833197,171.21,171.1,20.0]
[1721876350484,15.9582,171.2,171.1,20.0]
[1721876351090,15.9582,171.2,171.11,45.0]
[1721876351290,24.40033197,171.2,171.11,45.0]
[1721876351685,24.41138797,171.2,171.11,45.0]
[1721876351896,15.9582,171.2,171.11,45.0]
[1721876352074,15.9582,171.2,171.11,45.57100059]
[1721876352284,15.9582,171.2,171.12,20.0]
[1721876352487,15.9582,171.2,171.13,45.0]
[1721876352978,15.9582,171.2,171.12,65.0]
[1721876353193,15.9582,171.2,171.13,20.0]
[1721876353377,15.9582,171.2,171.14,45.0]
[1721876355273,15.9582,171.2,171.09,20.57118555]
[1721876355481,15.9582,171.2,171.1,20.0]
[1721876356777,15.9582,171.2,171.11,45.0]
[1721876359802,24.41198843,171.2,171.11,45.0]
[1721876360106,24.41198843,171.2,171.11,65.57114916]
[1721876360277,15.9582,171.2,171.13,20.0]
[1721876360476,15.9582,171.2,171.14,45.0]
[1721876362573,8.81910467,171.2,171.15,20.57045155]
[1721876362770,8.45576438,171.24,171.16,65.0]
[1721876362995,8.45576438,171.24,171.17,0.56991638]
[1721876363480,8.45576438,171.25,171.17,0.56991638]
[1721876363802,8.45576438,171.25,171.18,0.56991655]
[1721876364105,8.45736685,171.25,171.18,0.56991655]
[1721876364275,8.45736685,171.25,171.16,45.0]
[1721876364475,9.91668996,171.25,171.16,45.0]
[1721876364685,8.45664944,171.24,171.16,45.0]
[1721876364894,6.4535,171.26,171.12,20.0]
[1721876364895,8.45664944,171.23,171.12,20.0]
[1721876365096,8.45664944,171.23,171.14,20.0]
[1721876365295,8.45664944,171.24,171.14,20.0]
[1721876365496,8.45664944,171.23,171.14,20.0]
[1721876365681,24.92894944,171.23,171.12,20.57025206]
[1721876366090,24.92894944,171.23,171.11,33.0504415]
[1721876366398,24.92894944,171.23,171.1,0.57066337]
[1721876366600,9.91702404,171.22,171.09,59.64746939]
[1721876366812,8.45664944,171.21,171.09,59.64746939]
[1721876366998,8.45077991,171.21,171.09,59.64746939]
[1721876367198,1.4603746,171.22,171.09,59.64746939]
[1721876367406,8.45240796,171.21,171.09,53.05086939]
[1721876367590,6.6361,171.19,171.06,1.58802419]
[1721876367781,1.46075293,171.18,171.06,33.49679132]
[1721876368099,15.08850796,171.19,171.07,30.57175286]
[1721876368299,15.08850796,171.19,171.08,0.57169846]
[1721876368498,15.08850796,171.19,171.09,20.0]
[1721876368703,15.08850796,171.19,171.1,0.57117614]
[1721876369000,6.6361,171.19,171.11,0.57117665]
[1721876369188,6.6361,171.19,171.1,45.57091039]
[1721876369584,6.6361,171.19,171.11,0.57099717]
[1721876370381,6.6361,171.19,171.1,45.0]
[1721876370805,15.09050458,171.19,171.1,45.0]
[1721876372579,8.45440458,171.18,171.1,45.0]
[1721876372995,15.5438,171.17,171.07,0.57180444]
[1721876373195,15.5438,171.17,171.08,0.57160733]
[1721876373989,15.5438,171.17,171.08,20.57160733]
[1721876374187,15.5438,171.17,171.09,32.48]
[1721876374408,15.5438,171.17,171.1,45.57129607]
[1721876374587,15.5438,171.17,171.11,0.57130079]
[1721876376903,15.5438,171.17,171.1,45.0]
[1721876377109,15.5438,171.17,171.09,45.0]
[1721876377110,24.00021243,171.17,171.09,45.0]
[1721876379622,5.8432,171.14,171.06,1.01679132]
[1721876379826,8.45481015,171.13,171.06,1.01679132]
[1721876379999,6.4815,171.12,171.06,1.01679132]
[1721876380194,14.93631015,171.12,171.06,1.01679132]
[1721876380824,8.45481015,171.11,171.06,1.01679132]
[1721876381011,14.93631015,171.12,171.06,1.01679132]
[1721876381415,15.0485,171.11,171.06,1.01679132]
[1721876382307,23.50331015,171.11,171.06,1.01679132]
[1721876382704,23.49692185,171.11,171.06,1.01679132]
[1721876383026,15.0485,171.11,171.06,1.01679132]
[1721876383227,23.49739702,171.11,171.06,1.01679132]
[1721876384223,15.0485,171.11,171.06,1.01679132]
[1721876391023,23.49481942,171.11,171.06,1.01679132]
[1721876391528,23.49481942,171.11,171.01,32.48]
[1721876391845,23.49481942,171.11,171.02,1.0176907]
[1721876392137,8.44631942,171.1,171.02,1.0176907]
[1721876392338,23.50199068,171.11,171.02,1.0176907]
[1721876393419,15.0485,171.11,171.02,1.0176907]
[1721876393620,15.0485,171.11,171.02,1.59058968]
[1721876393834,15.0485,171.11,171.02,1.0176907]
[1721876394425,24.9634435,171.11,171.02,1.0176907]
[1721876395026,23.50199068,171.11,171.02,1.0176907]
[1721876395345,23.50599407,171.11,171.02,1.0176907]
[1721876395857,23.50533228,171.11,171.02,1.0176907]
[1721876396548,15.0485,171.11,171.02,1.59098001]
[1721876396731,15.0485,171.11,171.02,54.07098001]
[1721876396928,15.0485,171.11,171.03,45.0]
[1721876399847,15.0485,171.11,171.04,0.57298484]
[1721876400016,15.0485,171.11,171.03,45.0]
[1721876400858,15.0485,171.11,171.02,33.4976907]
[1721876400859,23.50677024,171.11,171.02,1.0176907]
[1721876401044,32.48,171.16,170.89,20.0]
[1721876401045,8.46038507,171.09,170.89,20.0]
[1721876401248,8.46038507,171.0,170.88,20.0]
[1721876401544,8.46038507,171.0,170.87,33.05540833]
[1721876401545,1.46235166,171.0,170.87,33.05540833]
[1721876401921,1.46235166,171.0,170.87,32.48]
[1721876402733,21.7773,171.01,170.9,52.48]
[1721876402951,21.7773,171.01,170.93,32.48]
[1721876403152,21.7773,171.01,170.94,0.57445553]
[1721876403652,21.7773,171.01,170.92,32.48]
[1721876403827,21.7773,171.01,170.9,0.57445672]
[1721876404037,21.7773,171.01,170.9,20.57445672]
[1721876404229,1.46222268,171.0,170.9,20.0]
[1721876404424,21.7773,171.01,170.9,60.57536547]
[1721876404751,21.7773,171.01,170.9,40.57536547]
[1721876405143,21.7773,171.01,170.91,45.0]
[1721876405348,21.7773,171.01,170.89,32.48]
[1721876405546,21.7773,171.01,170.86,32.48]
[1721876405547,1.46221427,171.0,170.86,32.48]
[1721876405751,5.8483,170.99,170.83,32.48]
[1721876405941,1.46221427,171.0,170.84,30.0]
[1721876405942,16.315,170.97,170.84,30.0]
[1721876406134,1.46287224,170.96,170.84,30.0]
[1721876406330,6.4069,170.95,170.8,52.48]
[1721876406540,1.46306383,170.94,170.8,32.48]
[1721876406749,15.8838,170.92,170.77,39.52427757]
[1721876407052,15.8838,170.92,170.76,20.8074846]
[1721876407053,1.46328677,170.91,170.76,0.8074846]
[1721876407432,5.8519,170.89,170.76,0.8074846]
[1721876407633,1.46354956,170.91,170.77,33.05828329]
[1721876408034,1.46354956,170.91,170.77,32.48]
[1721876409334,7.31454956,170.91,170.77,32.48]
[1721876409654,12.1978,170.9,170.76,0.8074846]
[1721876409849,5.8523,170.88,170.76,0.8074846]
[1721876410043,16.6001,170.86,170.76,0.8074846]
[1721876410249,1.46370399,170.85,170.76,0.8074846]
[1721876410849,16.6001,170.86,170.76,0.8074846]
[1721876411237,16.6001,170.86,170.77,0.57829279]
[1721876411441,16.6001,170.86,170.8,32.48]
[1721876411666,6.3464,170.9,170.82,20.0]
[1721876411834,6.3464,170.9,170.83,78.05675253]
[1721876412938,1.46296943,170.89,170.77,32.48]
[1721876413254,5.8521,170.88,170.76,0.8074846]
[1721876413430,1.4636746,170.87,170.76,0.8074846]
[1721876413840,1.46357835,170.89,170.76,0.8074846]
[1721876414456,1.46357835,170.89,170.76,1.38583602]
[1721876414646,21.4261,170.88,170.76,0.8074846]
[1721876414964,7.31635894,170.87,170.76,0.8074846]
[1721876415457,15.2864,170.85,170.76,0.8074846]
[1721876415665,7.31754359,170.84,170.76,0.8074846]
[1721876415851,5.8538,170.83,170.76,0.8074846]
[1721876416048,21.9859,170.81,170.76,0.8074846]
[1721876416348,21.9859,170.81,170.64,20.57941146]
[1721876416349,7.31918457,170.8,170.64,20.57941146]
[1721876416560,7.31968055,170.79,170.64,20.0]
[1721876416871,1.46447892,170.8,170.66,20.0]
[1721876417041,1.46447892,170.8,170.67,0.58005457]
[1721876417241,1.46447892,170.8,170.68,0.58005098]
[1721876417437,1.46428272,170.79,170.66,0.58004287]
[1721876417638,7.31948272,170.79,170.62,0.5801175]
[1721876417952,5.8555,170.78,170.62,0.5801175]
[1721876418148,1.46454727,170.77,170.62,0.5801175]
[1721876418352,1.46456863,170.76,170.62,20.5801175]
[1721876418550,1.4646585,170.79,170.65,20.0]
[1721876419167,1.4646585,170.79,170.62,0.58016381]
[1721876419371,7.3197585,170.79,170.62,0.58016381]
[1721876419737,7.3197585,170.79,170.62,20.58016381]
[1721876419971,5.8559,170.77,170.61,26.0615]
[1721876420172,36.7,170.82,170.6,37.28104917]
[1721876420173,21.668,170.75,170.6,37.28104917]
[1721876420345,21.668,170.75,170.6,57.28104917]
[1721876420346,1.46470963,170.74,170.6,57.28104917]
[1721876420668,1.46472693,170.73,170.6,0.58104917]
[1721876420847,1.46472693,170.73,170.59,20.58159515]
[1721876421553,1.4649238,170.74,170.57,56.7]
[1721876421761,7.32223529,170.73,170.57,57.28184903]